Cogmind - Beta 15 @@@ ROGUE MODE // 2025.08.06 @ 01:46:13 Player: GayPredator Result: Self-destructed Performance ------------- Evolutions (4) 2000 Regions Visited (4) 800 Robots Destroyed (77) 385 Value Destroyed (2667) 2667 Prototype IDs (3) 60 Alien Tech Used (0) 0 Bonus (1452) 1452 TOTAL SCORE: 7364 Bonus ------- High Alert Combat Kills 683 Follower Combat Kills 544 Registered with UFD 300 Friendly Fire -75 Cogmind --------- Core Integrity 157/850 Matter 300/300 Energy 99/100 System Corruption 2% Temperature Cool (0) Movement Core (50) Location -6/Factory Parts ------- > --- POWER (1) -------- (None) > --- PROPULSION (3) --- (None) > --- UTILITY (8) ------ (None) > --- WEAPON (3) ------- (None) > --- INVENTORY (5) ---- Carbon-fiber Leg Armored Huge Wheel Advanced Sensor Array Advanced Terrain Scanner Peak State ------------ > --- POWER ------------ Light Angular Momentum Engine > --- PROPULSION ------- Carbon-fiber Leg Flexi-carbon Leg Improved VSS Leg > --- UTILITY ---------- Large Storage Unit Improved Trap Scanner Active Sensor Suite Graphene Brace System Shield Improved System Shield > --- WEAPON ----------- Shock Rifle Companion Sword > --- INVENTORY -------- Light Nuclear Core Carbon-fiber Leg Carbon-fiber Leg Armored Huge Wheel Medium Matter Pod Improved Sensor Array Advanced Sensor Array Improved Signal Interpreter Advanced Signal Interpreter Advanced Signal Interpreter Advanced Terrain Scanner System Restoration Module Autogun [Rating: 80] Favorites ----------- Power Ion Engine Engine Ion Engine Power Core Light Nuclear Core Propulsion Light Treads Treads Light Treads Leg Carbon-fiber Leg Utility Large Storage Unit Device Improved Terrain Scanner Storage Large Storage Unit Processor Improved Terrain Scan Processor Hackware System Shield Protection Layered Medium Armor Plating Weapon Companion Sword Energy Gun Medium Laser Ballistic Gun Assault Rifle Ballistic Cannon Flak Cannon Launcher Missile Launcher Slashing Weapon Companion Sword Build | -11 -10 -10 -9 -6 ------- Run | Yrd Mat Sub Scr Fac Slots Evolved 8 | . . . . 8 Power . | . . . . . Propulsion 1 | . . . . 1 Utility 6 | . . . . 6 Weapon 1 | . . . . 1 Parts Attached 58 | 8 5 4 6 35 Power 8 | 1 1 . 1 5 Engine 6 | 1 1 . 1 3 Core 2 | . . . . 2 Reactor . | . . . . . Propulsion 17 | 2 1 1 1 12 Treads 10 | 2 1 1 1 5 Leg 7 | . . . . 7 Wheel . | . . . . . Hover . | . . . . . Flight . | . . . . . Utility 18 | 2 2 1 1 12 Device 10 | 1 1 1 1 6 Storage 2 | 1 1 . . . Processor 1 | . . . . 1 Hackware 2 | . . . . 2 Protection 3 | . . . . 3 Artifact . | . . . . . Weapon 15 | 3 1 2 3 6 Energy Gun 3 | . . 1 . 2 Energy Cannon . | . . . . . Ballistic Gun 4 | 3 . . 1 . Ballistic Cannon 4 | . . . 1 3 Launcher 3 | . 1 1 . 1 Special Weapon . | . . . . . Impact Weapon . | . . . . . Slashing Weapon 1 | . . . 1 . Piercing Weapon . | . . . . . Special Melee Weapon . | . . . . . Unidentified Prototypes 2 | . . . 1 1 Parts Lost 30 | . 1 5 . 24 Power 4 | . . . . 4 Propulsion 7 | . . 2 . 5 Utility 10 | . 1 1 . 8 Weapon 9 | . . 2 . 7 Highest Loss Streak 8 | . 1 4 . 8 To Critical Strikes . | . . . . . Average Backups 11 | 2 7 9 12 12 Power . | . 1 1 1 . Propulsion 2 | 1 2 3 2 1 Utility 6 | . 1 1 6 8 Weapon 2 | . 2 3 2 1 Tool/Special . | . . . . . Unused Backups 22 | . 1 . 2 19 Power 1 | . . . . 1 Propulsion 5 | . . . 2 3 Utility 14 | . 1 . . 13 Weapon 1 | . . . . 1 Tool/Special 1 | . . . . 1 Average Slot Usage (%) 89 | . 99 99 100 77 Engine 9 | . 14 14 14 4 Treads 20 | . 27 27 28 12 Leg 2 | . . . . 6 Device 15 | . 14 14 14 16 Storage 10 | . 14 14 14 5 Processor 1 | . . . . 3 Hackware 2 | . . . . 5 Protection 1 | . . . . 3 Energy Gun 2 | . . 5 6 1 Ballistic Gun 10 | . 27 20 13 . Ballistic Cannon 3 | . . . 5 4 Slashing Weapon 3 | . . . 2 5 Peak Build Rating 80 | 7 10 10 23 80 Average Rating 34 | 5 8 8 15 62 On Entrance 9 | . 7 10 7 23 Naked Turns 19 | . . . . 19 Heaviest Build 70 | 15 30 29 35 70 Greatest Support 76 | 40 40 40 40 76 Greatest Overweight (x) 10 | . . . . 10 Average Overweight (x) . | . . . . . Largest Inventory Capacity 15 | 8 15 15 15 15 Average Capacity 13 | 7 10 15 15 14 Most Carried 15 | 5 10 11 15 15 Average Carried 11 | 2 7 8 13 12 Final Capacity 15 | 8 15 15 15 5 Final Carried 15 | 5 10 7 15 5 Class Distribution -------------------- 72% | Mutant 19% | Scavenger-Assassin 7% | Scavenger-Mutant Dominant Class ---------------- Mutant | -10/Materials Mutant | -10/Subcaves Mutant | -9/Scraptown Scavenger-Assassin | -6/Factory Resources | -11 -10 -10 -9 -6 ----------- Run | Yrd Mat Sub Scr Fac Matter Collected 2609 | 304 372 187 40 1706 Remotely 92 | 78 14 . . . Salvage Created 3417 | 104 259 249 . 2805 Parts 176 | 3 26 12 . 135 Haulers Intercepted 1 | . 1 . . . Recyclers Shooed 3 | . . . . 3 Parts Field Recycled . | . . . . . Retrieved Matter . | . . . . . Parts Self-Destructed 5 | . . 5 . . Prevented . | . . . . . Kills | -11 -10 -10 -9 -6 ------- Run | Yrd Mat Sub Scr Fac Combat Hostiles Destroyed 57 | . 10 5 . 42 Melee 27 | . . . . 27 Guns 16 | . 7 4 . 5 Cannons 5 | . . . . 5 AOE 8 | . 3 1 . 4 Classes Destroyed 15 | 2 4 2 . 7 Worker 5 | . . . . 5 Builder 2 | . . . . 2 Tunneler 1 | 1 . . . . Hauler 1 | . 1 . . . Recycler 5 | 1 . . . 4 Mechanic 1 | . . . . 1 Operator 2 | . . . . 2 Watcher 3 | . 1 . . 2 Swarmer 14 | . 8 . . 6 Grunt 32 | . 2 2 . 28 Sentry 1 | . . 1 . . Specialist 2 | . . . . 2 Hunter 3 | . . . . 3 Programmer 3 | . . . . 3 Subdweller 2 | . . 2 . . Best Kill Streak 7 | 1 3 2 . 7 Combat Bots Only 6 | . 3 2 . 6 Max Kills in Single Turn 4 | 1 2 1 . 4 Gunslinging . | . . . . . Exploded 3 | . 2 1 . 3 Melee 1 | . . . . 1 Uniques/NPCs Destroyed . | . . . . . Combat | -11 -10 -10 -9 -6 -------- Run | Yrd Mat Sub Scr Fac Hostile Shots Fired 506 | . 55 40 . 411 Missed 124 | . 12 10 . 102 Hits 382 | . 43 30 . 309 Projectile 382 | . 43 30 . 309 Critical Strikes 13 | . 2 . . 11 Actively Blocked 2 | . . . . 2 Damage Taken 6411 | . 420 574 . 5417 Core 816 | . 57 66 . 693 Absorbed by Shields . | . . . . . Ignored by Resistances 115 | . . . . 115 Regen/Repaired (Parts) 194 | . 109 . . 85 Core Remaining (%) 75 | 100 . . 50 . Volleys Fired 113 | 4 39 22 . 48 Largest 2 | 2 2 2 . 2 Hottest 137 | 40 40 70 . 137 Shots Fired 216 | 8 76 44 . 88 Gun 152 | 8 74 43 . 27 Cannon 59 | . . . . 59 Launcher 5 | . 2 1 . 2 Special . | . . . . . Kinetic 187 | 8 74 32 . 73 Thermal 24 | . . 11 . 13 Explosive 5 | . 2 1 . 2 Electromagnetic . | . . . . . Robot Hit Streak 23 | 4 10 23 . 9 Robot Miss Streak 12 | 2 3 2 . 12 Penetration Max . | . . . . . Secondary Targets . | . . . . . Shots Hit Robots 253 | 5 45 39 . 164 Core Hits 157 | 3 15 12 . 127 Critical Kills . | . . . . . Critical Parts Destroyed 2 | . 2 . . . Critical Strikes 7 | . 2 2 . 3 Burn 3 | . . 2 . 1 Destroy 2 | . 2 . . . Melee Attacks 131 | . . . . 131 Impact . | . . . . . Slashing 131 | . . . . 131 Piercing . | . . . . . Sneak Attacks 21 | . . . . 21 Combat Hostiles 2 | . . . . 2 Follow-up Attacks 1 | . . . . 1 Damage Inflicted 7783 | 60 617 333 . 6773 Guns 1351 | 60 541 273 . 477 Cannons 1026 | . . . . 1026 Explosions 598 | . 66 60 . 472 Melee 4798 | . . . . 4798 Ramming 10 | . 10 . . . Kinetic 2013 | 60 541 174 . 1238 Thermal 364 | . . 99 . 265 Explosive 598 | . 66 60 . 472 Electromagnetic . | . . . . . Impact . | . . . . . Slashing 4798 | . . . . 4798 Piercing . | . . . . . Highest Corruption 2 | . . . . 2 Average Corruption 1 | . . . . 1 Corruption Purged . | . . . . . Corruption Blocked . | . . . . . Effects 1 | . . . . 1 Matter Fused 1 | . . . . 1 Overload Shots . | . . . . . Overflow Damage 353 | . . . . 353 Projectiles 1 | . . . . 1 Explosions . | . . . . . Melee 352 | . . . . 352 Knockbacks 27 | . . . . 27 Impact . | . . . . . Kinetic 26 | . . . . 26 Secondary 1 | . . . . 1 Self-Inflicted Damage 30 | . 30 . . . Shots 1 | . 1 . . . Rammed 4 | . 4 . . . Targets Rammed 4 | . 4 . . . Kicked . | . . . . . Crushed . | . . . . . Highest Temperature 379 | . . . . 379 Average Temperature 97 | . . . . 97 Received Heat Transfer 2250 | . 72 153 . 2025 Siege Activations . | . . . . . Martial Activations . | . . . . . Shielding Activations . | . . . . . Robots Disrupted 1 | . . . . 1 Combat Hostiles . | . . . . . Robots Corrupted . | . . . . . Combat Hostiles . | . . . . . Parts Fried . | . . . . . Impact Corruptions . | . . . . . Robots Melted 1 | . . . . 1 Combat Hostiles 1 | . . . . 1 Parts Melted 4 | . . 1 . 3 Heat Transferred 994 | . . 444 . 550 Parts Sabotaged . | . . . . . Parts Stolen . | . . . . . Parts Stripped . | . . . . . Power Chain Reactions . | . . . . . Alert | -11 -10 -10 -9 -6 ------- Run | Yrd Mat Sub Scr Fac Maximum Alert Level 4 | . . . . 4 Low Security (%) 53 | 100 100 . . 30 Level 1 . | . . . . . Level 2 15 | . . . . 23 Level 3 20 | . . . . 30 Level 4 10 | . . . . 14 Level 5 . | . . . . . High Security . | . . . . . Max Security . | . . . . . Peak Influence 1250 | 5 186 . . 1250 Initial . | . . . . . Average 428 | . 34 . . 618 Influence Increases 2770 | 10 391 70 . 2299 Destroy 0b10 Robot/C 1380 | . 200 60 . 1120 Destroy 0b10 Robot/NC 105 | 10 10 . . 85 Destroy Leader 268 | . 44 10 . 214 Allied During Kill 219 | . . . . 219 Successful Hack 8 | . 8 . . . Disable Machine 60 | . . . . 60 Destroy Structure 85 | . 24 . . 61 Lose Combat Pursuer 345 | . 105 . . 240 Active Sensor Use 300 | . . . . 300 Influence Decreases 1556 | 10 391 30 40 1085 Entered New Map 40 | . . . 40 . Time Decay 886 | 10 231 30 . 615 Lost Part 250 | . 10 . . 240 Lost Ally 80 | . . . . 80 Purge Threat 300 | . 150 . . 150 Squads Dispatched 25 | . 2 . . 23 Investigation 10 | . 1 . . 9 Extermination 5 | . . . . 5 Reinforcement 9 | . 1 . . 8 Assault 1 | . . . . 1 Garrison . | . . . . . Intercept . | . . . . . Searches Triggered . | . . . . . Construction Impeded 2 | . . . . 2 Haulers Reinforced . | . . . . . Active Scanning Responses 3 | . . . . 3 Cargo Convoy Interrupts . | . . . . . Stealth | -11 -10 -10 -9 -6 --------- Run | Yrd Mat Sub Scr Fac Distress Signals 6 | . 1 . . 5 Communications Jammed . | . . . . . Distress Signals . | . . . . . Times Spotted 107 | . 21 5 . 81 Peak Tracking Total 9 | . 4 2 . 9 Tactical Retreats 16 | . 6 . . 10 Traps | -11 -10 -10 -9 -6 ------- Run | Yrd Mat Sub Scr Fac Traps Triggered 2 | . 1 . . 1 Indirectly . | . . . . . Trap Hack Attempts . | . . . . . Triggered . | . . . . . Disarmed . | . . . . . Reprogrammed . | . . . . . Reused . | . . . . . Traps Extracted . | . . . . . Installed . | . . . . . Triggered . | . . . . . Machines | -11 -10 -10 -9 -6 ---------- Run | Yrd Mat Sub Scr Fac Machines Disabled 4 | . . . . 4 Max in Single Turn 1 | . . . . 1 Machines Repaired . | . . . . . Machines Dismantled . | . . . . . Machines Sabotaged . | . . . . . Overloaded Fab Kills . | . . . . . Hacking | -11 -10 -10 -9 -6 --------- Run | Yrd Mat Sub Scr Fac Machines Accessed 20 | . 10 . 3 7 Terminals 10 | . 8 . . 2 Fabricators . | . . . . . Repair Stations 2 | . 1 . . 1 Recycling Units 5 | . 1 . . 4 Scanalyzers . | . . . . . Garrison Access . | . . . . . Total Hacks 52 | . 27 . 9 16 Successful 35 | . 19 . 9 7 Failed 16 | . 7 . . 9 Catastrophic 4 | . 1 . . 3 Database Lockouts 1 | . 1 . . . Manual 27 | . 18 . . 9 Terminals 29 | . 22 . . 7 Fabricators . | . . . . . Repair Stations 5 | . 2 . . 3 Recycling Units 9 | . 3 . . 6 Scanalyzers . | . . . . . Garrison Access . | . . . . . Terminal Hacks 19 | . 8 . 9 2 Record 8 | . . . 8 . Part Schematic 1 | . 1 . . . Robot Analysis 2 | . 2 . . . Open Door 1 | . . . 1 . Terminal Index 1 | . 1 . . . Unreport Threat 2 | . 1 . . 1 Locate Traps 4 | . 3 . . 1 Fabricator Hacks . | . . . . . Repair Station Hacks 3 | . 2 . . 1 Scan Component 2 | . 1 . . 1 Repair 1 | . 1 . . . Recycling Unit Hacks 2 | . 2 . . . Report Inventory 1 | . 1 . . . Retrieve Components 1 | . 1 . . . Scanalyzer . | . . . . . Garrison Access Hacks . | . . . . . Unauthorized Hacks 11 | . 7 . . 4 Terminals 6 | . 6 . . . Botnet 1 | . 1 . . . Skim 5 | . 5 . . . Fabricators . | . . . . . Repair Stations . | . . . . . Recycling Units 5 | . 1 . . 4 Monitor 1 | . 1 . . . Fedlink 4 | . . . . 4 Scanalyzers . | . . . . . Garrison Access . | . . . . . Data Cores Recovered . | . . . . . Used . | . . . . . Hacking Detections 13 | . 9 . . 4 Full Trace Events 2 | . . . . 2 Feedback Events . | . . . . . Feedback Blocked . | . . . . . Robot Schematics Acquired . | . . . . . Robots Built . | . . . . . Authchips . | . . . . . Time . | . . . . . Total Robot Build Rating . | . . . . . Part Schematics Acquired 1 | . 1 . . . Parts Built . | . . . . . Authchips . | . . . . . Time . | . . . . . Total Part Build Rating . | . . . . . Parts Repaired 1 | . 1 . . . Time 26 | . 26 . . . Parts Recycled . | . . . . . Recycled Matter . | . . . . . Retrieved Matter . | . . . . . Retrieved Components 2 | . 2 . . . Parts Scanalyzed . | . . . . . Part Schematics Acquired . | . . . . . Parts Damaged . | . . . . . Bothacking | -11 -10 -10 -9 -6 ------------ Run | Yrd Mat Sub Scr Fac Used RIF Installer . | . . . . . Robots Hacked . | . . . . . Non-combat . | . . . . . Combat . | . . . . . Robot Hacks Applied . | . . . . . Relay Couplers Released . | . . . . . Fabnet Peak Effective % . | . . . . . Robots Rewired . | . . . . . Allies Hacked . | . . . . . Hacks Repelled 1 | . . . . 1 Allies | -11 -10 -10 -9 -6 -------- Run | Yrd Mat Sub Scr Fac Total Allies 5 | . . . . 5 Largest Group 5 | . . . . 5 Highest-Rated Group 235 | . . . . 235 Highest-Rated Ally 47 | . . . . 47 Total Orders . | . . . . . Ally Attacks 127 | . . . . 127 Total Damage 2637 | . . . . 2637 Kills 16 | . . . . 16 Allies Corrupted . | . . . . . Allies Melted . | . . . . . Intel | -11 -10 -10 -9 -6 ------- Run | Yrd Mat Sub Scr Fac Active Infowar (turns) 4538 | . 898 170 1299 2171 A.S.S. 977 | . . . . 977 Terrain 3561 | . 898 170 1299 1194 Traps 741 | . . . . 741 Robot Analysis Total 2 | . 2 . . . Derelict Logs Recovered . | . . . . . Drone Launches . | . . . . . Drone Recoveries . | . . . . . Exploration | -11 -10 -10 -9 -6 ------------- Run | Yrd Mat Sub Scr Fac Turns Passed 5311 | 116 1028 295 1481 2391 Spaces Moved 2715 | 54 516 133 912 1100 Core 41 | 1 . . . 40 Treads 2222 | 53 516 133 912 608 Legs 452 | . . . . 452 Wheels . | . . . . . Hover . | . . . . . Flight . | . . . . . Fastest Speed 50 | 50 160 160 160 50 Average Speed 157 | 157 160 160 160 154 Slowest Speed 550 | 160 160 160 160 550 Overloaded Moves . | . . . . . Propulsion Burnouts . | . . . . . Robots Hopped . | . . . . . Potential Cave-ins . | . . . . . Cave-ins Triggered . | . . . . . Exploration Rate (%) 43 | 4 86 16 80 31 Regions Visited 4 Branch Regions 2 Pre-discovered Areas . | . . . . . Known Exits Taken 1 | . 1 . . . Unknown Exits Taken 3 | 1 . 1 1 . Scrap Searched 5 | . . . 5 . Spaces Dug 5 | . . . . 5 Terrain Destroyed 51 | . 22 3 . 26 Melee 5 | . . . . 5 Projectile 3 | . . . . 3 AOE 43 | . 22 3 . 18 Terrain Rammed . | . . . . . Walls Destroyed . | . . . . . Machines Disabled . | . . . . . Actions | -11 -10 -10 -9 -6 --------- Run | Yrd Mat Sub Scr Fac Total 3337 | 73 639 172 935 1518 Wait 221 | 3 65 5 . 148 Move 2711 | 53 515 132 911 1100 Hop . | . . . . . Pick Up 41 | 5 6 2 9 19 Fast Attach 29 | 7 1 . 4 17 Attach 22 | . 1 5 . 16 Detach 9 | . . . 1 8 Swap 23 | 1 5 6 2 9 Drop 34 | . 3 . 8 23 Fire 113 | 4 39 22 . 48 Melee 130 | . . . . 130 Ram . | . . . . . Kick . | . . . . . Crush 4 | . 4 . . . Escape Stasis . | . . . . . Rewire . | . . . . . Trap . | . . . . . Miscellaneous . | . . . . . Route ------- -11/Scrapyard -10/Materials (discovered 4 exits: *Mat x3 / *Sub) -10/Subcaves -9/Scraptown -6/Factory (discovered 1 exit: [*Fac]) History --------- Turn | Location | Event 49 | -11/Scrapyard | Discovered new exit (range 16) 117 | -11/Scrapyard | Entered Materials 306 | -10/Materials | Build established: Mutant 394 | -10/Materials | Discovered new exit (range 4) 624 | -10/Materials | Discovered new exit (range 8) 858 | -10/Materials | Discovered new exit (range 5) 876 | -10/Materials | Central database locked down 920 | -10/Materials | Learned location of 2 exits from Mines 959 | -10/Materials | Repaired Lgt. Treads 972 | -10/Materials | Learned Storage stockpile data 980 | -10/Materials | Learned 2 Mines zone layouts 981 | -10/Materials | Learned 4 Subcaves zone layouts 982 | -10/Materials | Identified exit to Materials 982 | -10/Materials | Identified exit to Subcaves 983 | -10/Materials | Learned 2 Storage zone layouts 994 | -10/Materials | Learned Materials emergency access door positions 1145 | -10/Materials | Entered Subcaves 1146 | -10/Subcaves | Approached by a straggling Scientist 1354 | -10/Subcaves | Lost 4 parts (1n1u2w) 1432 | -10/Subcaves | Scientist uncovered a shortcut to Scraptown 1440 | -10/Subcaves | Entered Scraptown 1762 | -9/Scraptown | Heard Great Nut preacher, LISTEN AND RECITE! 1831 | -9/Scraptown | Visited Supply Room 1862 | -9/Scraptown | Visited Spacefarers 1949 | -9/Scraptown | Visited Symbiants 2216 | -9/Scraptown | Visited UFD Registry 2216 | -9/Scraptown | Registered with UFD as "Armorbomber" 2267 | -9/Scraptown | Visited Curators Association 2313 | -9/Scraptown | Visited Supply Room 2552 | -9/Scraptown | Visited DA-N13 Charitable Foundation 2569 | -9/Scraptown | Found DCF Scrap (29 items) 2613 | -9/Scraptown | Visited Sword Containment 2670 | -9/Scraptown | Visited Scrapoid Pod Storage 2679 | -9/Scraptown | Found Scrapoid Pod 2717 | -9/Scraptown | Visited Scrap Suit Storage 2726 | -9/Scraptown | Found Scrap Suit 2756 | -9/Scraptown | Visited Chapter 10 2913 | -9/Scraptown | Discovered new exit (range 5) 2921 | -9/Scraptown | Entered Factory 2921 | -6/Factory | Evolved 8 slots: Propulsion x1, Utility x6, Weapon x1 3439 | -6/Factory | Scrapoid Pod released 06F05-D (x5) 3576 | -6/Factory | Loaded intel: 8 recycling unit locations 3668 | -6/Factory | Discovered new exit (range 17) 3699 | -6/Factory | Lost 3 parts (1p1n1w) 3865 | -6/Factory | Lost 3 allies 4093 | -6/Factory | Build established: Scavenger-Mutant 4175 | -6/Factory | Lost 5 parts (1p2u2w) 4247 | -6/Factory | Found Prototype Device 4247 | -6/Factory | Identified Active Sensor Suite 4547 | -6/Factory | Lost 5 parts (1p1n1u2w) 4550 | -6/Factory | Build established: Scavenger-Assassin 4791 | -6/Factory | Core integrity fell below 50% 5016 | -6/Factory | Spotted B-75 Beast 5021 | -6/Factory | First assault squad dispatched 5293 | -6/Factory | Released all parts (4) 5300 | -6/Factory | Core integrity fell below 20% 5312 | -6/Factory | Self-destructed Last Messages --------------- 05252_ System corrupted: Matter fused (-6). 05256_ Carbon-fiber Leg destroyed. 05257_ G-50 Soldier destroyed. 05265_ Lgt. Angular Momentum Engine destroyed. 05272_ Shock Rifle destroyed. 05274_ System Shield destroyed. 05276_ Flexi-carbon Leg destroyed. 05277_ G-50 Soldier destroyed. 05279_ Imp. VSS Leg destroyed. 05284_ Imp. System Shield destroyed. 05285_ G-50 Soldier destroyed. Companion Sword: "My rage meter is topping out already." 05291_ Active Sensor Suite destroyed. 05293_ Released Imp. Trap Scanner. 05293_ Released Graphene Brace. 05293_ Released Companion Sword. Companion Sword: "I can't do anything from down here." 05293_ Released Lrg. Storage Unit. Map ----- +----------------------------------------------------+ | #????????????????????????????????????????????""??? | | ?????????????????????????????????????????????????? | | ?????????????????????????????????????????????????? | | ?????????????????????????????????????????????????? | | ?????????????????????????????????????????????????? | | #????????????????????????????????????????????????? | | #????????????????????????????????????????????????? | | #????????????????????????????????????????????????? | | ?????????????????????????????????????????????????? | | ?????????????????????????????????????????????????? | | ?????????????????????????????????????????????????? | | ?????????????????????????????????????????????????? | | ?????????????????????????????????????????????????? | | ???????????????############??????????????????????? | | ?????????????? ## #??????????????????????? | | ??????#??? ## [[ #??????????????????????? | | ??????# """""" ## [ #??????????????????????? | | ??????# """""" ## #??????????????????????? | | ??????# """""" ## #??????????????????????? | | ??????# """""" ## #??????????????????????? | | ???????? #? ???????????????????????? | | ??????????! ???? ?????????????????????????? | | ############+########+################# ?????????? | | ^ ????????? | | ^ ????????? | | R @ ????????? | | #####################/##############+????????????? | | ??????????????????? [?????????????????????????? | | ?????????????????# ???????????????????????? | | ?????????????????# """ #??????????????????????? | | ?????????????????# """ #??????????????????????? | | ?????????????????# """ #??????????????????????? | | ?????????????????# "" #??????????????????????? | | ?????????????????# * "" #??????????????????????? | | ?????????????????# ?? #??????????????????????? | | ?????????????????# ? ??? #??????????????????????? | | ?????????????????##?????###??????????????????????? | | ?????????????????????????????????????????????????? | | ?????????????????????????????????????????????????? | | ?????????????????????????????????????????????????? | | ?????????????????????????????????????????????????? | | ?????????????????????????????????????????????????? | | ?????????????????????????????????????????????????? | | ?????????????????????????????????????????????????? | | ?????????????????????????????????????????????????? | | | | | | | | | | | +----------------------------------------------------+ Best States ------------- Heat Dissipation 37 Energy Generation 18 Energy Capacity 250 Matter Stores 300 Matter Capacity 300 Sight Range 16 Robot Scan Range 20 Terrain Scan Range 20 Terrain Scan Density 110 Armor Coverage 825 Resistance: KI 30 Evasion (%) 55 Recoil Reduction 3 Defensive Hacking 22 Item Schematics ----------------- Grenade Launcher | -10/Materials | Hacked Robot Schematics ------------------ None Fabricated ------------ Nothing Repaired ---------- Lgt. Treads | 22% | -10/Materials Alien Tech Used ----------------- None Achievements -------------- None Challenges ------------ None Game ------ Seed ConceptDeliveryVibroblade Manual? 0 Play Time 00:49:57 Cumulative 168.6 hours Start 2025.08.05 @ 23:55:04 End 2025.08.06 @ 01:46:13 Sessions 2 Manual Loads 0 Difficulty Rogue Special Mode None Game No. 147 Rogue 108 Adventurer 32 Explorer 7 Win Type - Total 1 Types 1/0/0/0/0/0/0/0/0/0 Lore% 41 Gallery% 61 Achievement% 53 Wizard Run 0 Options --------- Layout 1 ASCII 0 Keyboard 0 Movement Numpad Keybinds 0 Fullscreen 1 Font 24/Smallcaps Map View 50x35 Zoom Use 0% Tactical HUD 1 Map Filters NONE Filters NONE Steam 1 RUN: 9987d51c-caa0-4d5c-adf6-985614b27324